[Event "CCT Chessable Masters Place D-III 2024"]
[Site "Online"]
[Date "2024.02.01"]
[Round "1"]
[White "Sargissian, Gabriel"]
[Black "Lupulescu, Constantin"]
[Result "1-0"]
[ECO "D27"]
[WhiteElo "2672"]
[BlackElo "2589"]
[Annotator "ChessBase"]
[PlyCount "101"]
[EventDate "2024.01.12"]
[EventType "k.o."]
[EventCountry "NET"]
[SourceTitle "playchess.com"]
[Source "ChessBase"]
[SourceQuality "1"]
[TimeControl "600+2"]

1. d4 {[%emt 0:00:02]} Nf6 {[%emt 0:00:04]} 2. c4 {[%emt 0:00:02]} e6 {[%emt 0:00:01]} 3. Nf3 {[%emt 0:00:00]} d5 {[%emt 0:00:01]} 4. e3 {[%emt 0:00:03]} Be7 {[%emt 0:00:07]} 5. b3 {[%emt 0:00:09]} O-O {[%emt 0:00:06]} 6. Bb2 {[%emt 0:00:03]} dxc4 {[%emt 0:00:12]} 7. Bxc4 {[%emt 0:00:04]} a6 {[%emt 0:00:01]} 8. O-O {[%emt 0:00:10]} b5 {[%emt 0:00:02]} 9. Be2 {[%emt 0:00:04]} Bb7 {[%emt 0:00:05]} 10. a4 {[%emt 0:00:01]} b4 {[%emt 0:00:04]} 11. Nbd2 {[%emt 0:00:01]} c5 {[%emt 0:00:03]} 12. Nc4 {[%emt 0:00:08]} Nbd7 {[%emt 0:00:04]} 13. a5 {[%emt 0:00:09]} Qc7 {[%emt 0:00:11]} 14. Nfe5 {[%emt 0:00:44]} Rad8 {[%emt 0:01:01]} 15. Bf3 {[%emt 0:01:03]} Nxe5 {[%emt 0:01:59]} 16. Nxe5 {[%emt 0:00:03]} Nd7 {[%emt 0:00:10]} 17. Bxb7 {[%emt 0:00:23]} Qxb7 {[%emt 0:00:05]} 18. Qf3 {[%emt 0:00:10]} Qxf3 {[%emt 0:00:14]} 19. Nxf3 {[%emt 0:00:00]} Rc8 {[%emt 0:00:29]} 20. Rfc1 {[%emt 0:00:54]} Bf6 {[%emt 0:00:14]} 21. Kf1 {[%emt 0:00:14]} Rfd8 {[%emt 0:00:53]} 22. Ke2 {[%emt 0:00:38]} Kf8 {[%emt 0:00:02]} 23. Rab1 {[%emt 0:00:34]} cxd4 {[%emt 0:01:19]} 24. Bxd4 {[%emt 0:00:21]} Bxd4 {[%emt 0:00:02]} 25. Nxd4 {[%emt 0:00:03]} Nc5 {[%emt 0:00:05]} 26. Rc4 {[%emt 0:00:42]} Nxb3 {[%emt 0:01:23]} 27. Nxe6+ {[%emt 0:00:02]} Ke7 {[%emt 0:00:08]} 28. Rxc8 {[%emt 0:00:10]} Rxc8 {[%emt 0:00:03]} 29. Rxb3 {[%emt 0:00:32]} fxe6 {[%emt 0:00:06]} 30. Rxb4 {[%emt 0:00:01]} Rc2+ {[%emt 0:00:01]} 31. Kf3 {[%emt 0:00:09]} Ra2 {[%emt 0:00:02]} 32. Rh4 {[%emt 0:00:07]} h6 {[%emt 0:00:13]} 33. Rh5 {[%emt 0:00:01]} Kf6 {[%emt 0:00:04]} 34. Rc5 {[%emt 0:00:05]} g6 {[%emt 0:00:09]} 35. Kg3 {[%emt 0:00:37]} h5 {[%emt 0:00:09]} 36. f4 {[%emt 0:00:06]} Ra3 {[%emt 0:00:05]} 37. Kf3 {[%emt 0:00:01]} Kf7 {[%emt 0:00:07]} 38. h3 {[%emt 0:00:16]} h4 {[%emt 0:00:07]} 39. Rc7+ {[%emt 0:00:16]} Kf6 {[%emt 0:00:02]} 40. Rh7 {[%emt 0:00:05]} Rxa5 {[%emt 0:00:07]} 41. Rxh4 {[%emt 0:00:01]} e5 {[%emt 0:00:20]} 42. Rh8 {[%emt 0:00:04]} exf4 {[%emt 0:00:03]} 43. exf4 {[%emt 0:00:01]} Ra1 {[%emt 0:00:06]} 44. Ra8 {[%emt 0:00:03]} a5 {[%emt 0:00:01]} 45. Kg4 {[%emt 0:00:08]} Ra2 {[%emt 0:00:06]} 46. Ra6+ {[%emt 0:00:04]} Kg7 {[%emt 0:00:02]} 47. g3 {[%emt 0:00:02]} Ra3 {[%emt 0:00:02]} 48. Kh4 {[%emt 0:00:02]} Kf7 {[%emt 0:00:28]} 49. g4 {[%emt 0:00:07]} Rf3 {[%emt 0:00:05]} 50. Kg5 {[%emt 0:00:03]} Rxh3 {[%emt 0:00:07]} 51. Ra7+ {[%emt 0:00:20]} 1-0

[Event "CCT Chessable Masters Place D-III 2024"]
[Site "Online"]
[Date "2024.02.01"]
[Round "1"]
[White "Predke, Alexandr"]
[Black "rasmussvane"]
[Result "1/2-1/2"]
[ECO "D02"]
[WhiteElo "2668"]
[BlackElo "2605"]
[Annotator "ChessBase"]
[PlyCount "310"]
[EventDate "2024.01.12"]
[EventType "k.o."]
[EventCountry "NET"]
[SourceTitle "playchess.com"]
[Source "ChessBase"]
[SourceQuality "1"]
[TimeControl "600+2"]

1. d4 {[%emt 0:00:05]} Nf6 {[%emt 0:00:05]} 2. Nf3 {[%emt 0:00:03]} d5 {[%emt 0:00:06]} 3. Bf4 {[%emt 0:00:02]} c5 {[%emt 0:00:27]} 4. e3 {[%emt 0:00:01]} e6 {[%emt 0:00:11]} 5. Nbd2 {[%emt 0:00:04]} Qb6 {[%emt 0:00:03]} 6. Qb1 {[%emt 0:00:19]} Bd6 {[%emt 0:00:16]} 7. Bg3 {[%emt 0:00:15]} O-O {[%emt 0:00:47]} 8. c3 {[%emt 0:00:07]} Qc7 {[%emt 0:00:31]} 9. dxc5 {[%emt 0:00:49]} Qxc5 {[%emt 0:00:03]} 10. Bd3 {[%emt 0:00:01]} Nbd7 {[%emt 0:00:06]} 11. e4 {[%emt 0:00:25]} dxe4 {[%emt 0:00:10]} 12. Bxe4 {[%emt 0:00:02]} h6 {[%emt 0:00:31]} 13. O-O {[%emt 0:00:19]} Bxg3 {[%emt 0:00:05]} 14. hxg3 {[%emt 0:00:00]} Qc7 {[%emt 0:00:02]} 15. c4 {[%emt 0:01:12]} Rd8 {[%emt 0:00:43]} 16. Re1 {[%emt 0:00:39]} Nxe4 {[%emt 0:00:23]} 17. Qxe4 {[%emt 0:00:40]} Nc5 {[%emt 0:00:01]} 18. Qe2 {[%emt 0:00:25]} b6 {[%emt 0:01:07]} 19. Ne4 {[%emt 0:00:10]} Nxe4 {[%emt 0:00:22]} 20. Qxe4 {[%emt 0:00:01]} Bb7 {[%emt 0:00:01]} 21. Qe2 {[%emt 0:00:01]} Rd6 {[%emt 0:00:46]} 22. Rad1 {[%emt 0:00:16]} Rad8 {[%emt 0:00:03]} 23. b3 {[%emt 0:00:02]} Qc5 {[%emt 0:00:18]} 24. Rxd6 {[%emt 0:00:30]} Qxd6 {[%emt 0:00:01]} 25. Qe5 {[%emt 0:00:12]} Qxe5 {[%emt 0:00:07]} 26. Nxe5 {[%emt 0:00:00]} f6 {[%emt 0:00:47]} 27. Ng4 {[%emt 0:00:35]} Rd2 {[%emt 0:00:47]} 28. a4 {[%emt 0:00:57]} Kf7 {[%emt 0:00:08]} 29. a5 {[%emt 0:00:04]} Rb2 {[%emt 0:00:33]} 30. axb6 {[%emt 0:00:18]} axb6 {[%emt 0:00:02]} 31. Ra1 {[%emt 0:00:02]} Be4 {[%emt 0:00:01]} 32. Ra7+ {[%emt 0:00:13]} Kg6 {[%emt 0:00:01]} 33. Re7 {[%emt 0:00:16]} e5 {[%emt 0:00:22]} 34. Ne3 {[%emt 0:00:02]} h5 {[%emt 0:00:18]} 35. Nd5 {[%emt 0:01:19]} Rxb3 {[%emt 0:00:06]} 36. Rb7 {[%emt 0:00:02]} Bxd5 {[%emt 0:00:38]} 37. cxd5 {[%emt 0:00:00]} Rd3 {[%emt 0:00:02]} 38. Rxb6 {[%emt 0:00:01]} Rxd5 {[%emt 0:00:00]} 39. f3 {[%emt 0:00:05]} Kf5 {[%emt 0:00:02]} 40. Rb4 {[%emt 0:00:06]} Rd4 {[%emt 0:00:01]} 41. Rb5 {[%emt 0:00:01]} g6 {[%emt 0:00:03]} 42. Ra5 {[%emt 0:00:02]} Ke6 {[%emt 0:00:03]} 43. Ra6+ {[%emt 0:00:02]} Rd6 {[%emt 0:00:01]} 44. Ra8 {[%emt 0:00:03]} Rd5 {[%emt 0:00:03]} 45. Ra6+ {[%emt 0:00:02]} Kf5 {[%emt 0:00:01]} 46. Ra4 {[%emt 0:00:01]} Rd6 {[%emt 0:00:03]} 47. Ra5 {[%emt 0:00:06]} Rb6 {[%emt 0:00:04]} 48. Ra8 {[%emt 0:00:03]} Rb4 {[%emt 0:00:06]} 49. Kh2 {[%emt 0:00:13]} Rb6 {[%emt 0:00:04]} 50. Rg8 {[%emt 0:00:04]} Re6 {[%emt 0:00:01]} 51. Ra8 {[%emt 0:00:04]} e4 {[%emt 0:00:00]} 52. fxe4+ {[%emt 0:00:03]} Rxe4 {[%emt 0:00:01]} 53. Ra6 {[%emt 0:00:05]} Kg5 {[%emt 0:00:02]} 54. Rb6 {[%emt 0:00:02]} Re5 {[%emt 0:00:01]} 55. Ra6 {[%emt 0:00:02]} Rc5 {[%emt 0:00:01]} 56. Rb6 {[%emt 0:00:01]} Ra5 {[%emt 0:00:01]} 57. Rc6 {[%emt 0:00:01]} Rb5 {[%emt 0:00:00]} 58. Ra6 {[%emt 0:00:01]} Rd5 {[%emt 0:00:01]} 59. Rb6 {[%emt 0:00:00]} Re5 {[%emt 0:00:00]} 60. Ra6 {[%emt 0:00:01]} Kf5 {[%emt 0:00:01]} 61. Rb6 {[%emt 0:00:02]} Ra5 {[%emt 0:00:00]} 62. Rc6 {[%emt 0:00:01]} Rb5 {[%emt 0:00:01]} 63. Ra6 {[%emt 0:00:00]} Rd5 {[%emt 0:00:01]} 64. Rb6 {[%emt 0:00:01]} Kg5 {[%emt 0:00:02]} 65. Ra6 {[%emt 0:00:02]} Re5 {[%emt 0:00:02]} 66. Rb6 {[%emt 0:00:00]} f5 {[%emt 0:00:01]} 67. Ra6 {[%emt 0:00:02]} Re4 {[%emt 0:00:01]} 68. Rb6 {[%emt 0:00:03]} Kh6 {[%emt 0:00:08]} 69. Ra6 {[%emt 0:00:03]} Kg7 {[%emt 0:00:04]} 70. Ra7+ {[%emt 0:00:01]} Kf6 {[%emt 0:00:01]} 71. Ra6+ {[%emt 0:00:01]} Re6 {[%emt 0:00:00]} 72. Ra8 {[%emt 0:00:01]} Rd6 {[%emt 0:00:04]} 73. Rb8 {[%emt 0:00:02]} Ke5 {[%emt 0:00:06]} 74. Rb4 {[%emt 0:00:06]} Ke6 {[%emt 0:00:04]} 75. Rb8 {[%emt 0:00:02]} Kf6 {[%emt 0:00:01]} 76. Ra8 {[%emt 0:00:01]} Kg5 {[%emt 0:00:01]} 77. Ra4 {[%emt 0:00:01]} Re6 {[%emt 0:00:01]} 78. Rb4 {[%emt 0:00:01]} Kf6 {[%emt 0:00:04]} 79. Rb8 {[%emt 0:00:03]} Rc6 {[%emt 0:00:02]} 80. Ra8 {[%emt 0:00:01]} Kg5 {[%emt 0:00:02]} 81. Ra4 {[%emt 0:00:01]} Rd6 {[%emt 0:00:01]} 82. Rb4 {[%emt 0:00:01]} Ra6 {[%emt 0:00:01]} 83. Rc4 {[%emt 0:00:01]} Re6 {[%emt 0:00:01]} 84. Rb4 {[%emt 0:00:01]} Re4 {[%emt 0:00:02]} 85. Rb6 {[%emt 0:00:01]} Rg4 {[%emt 0:00:04]} 86. Ra6 {[%emt 0:00:01]} Rb4 {[%emt 0:00:03]} 87. Rc6 {[%emt 0:00:02]} h4 {[%emt 0:00:04]} 88. gxh4+ {[%emt 0:00:02]} Rxh4+ {[%emt 0:00:01]} 89. Kg3 {[%emt 0:00:03]} Rg4+ {[%emt 0:00:01]} 90. Kh3 {[%emt 0:00:05]} Rb4 {[%emt 0:00:00]} 91. g3 {[%emt 0:00:10]} Rb5 {[%emt 0:00:04]} 92. Ra6 {[%emt 0:00:02]} Rb4 {[%emt 0:00:01]} 93. Rc6 {[%emt 0:00:02]} Rd4 {[%emt 0:00:02]} 94. Rb6 {[%emt 0:00:01]} Kh5 {[%emt 0:00:01]} 95. Rb8 {[%emt 0:00:05]} Rd3 {[%emt 0:00:01]} 96. Rb5 {[%emt 0:00:13]} Kh6 {[%emt 0:00:02]} 97. Kg2 {[%emt 0:00:01]} Kg5 {[%emt 0:00:03]} 98. Kh3 {[%emt 0:00:02]} Ra3 {[%emt 0:00:01]} 99. Rc5 {[%emt 0:00:02]} Kh6 {[%emt 0:00:01]} 100. Kg2 {[%emt 0:00:06]} Kh5 {[%emt 0:00:02]} 101. Kh3 {[%emt 0:00:01]} Ra4 {[%emt 0:00:01]} 102. Rb5 {[%emt 0:00:03]} Re4 {[%emt 0:00:01]} 103. Rc5 {[%emt 0:00:01]} Kg5 {[%emt 0:00:02]} 104. Rb5 {[%emt 0:00:01]} Re6 {[%emt 0:00:02]} 105. Ra5 {[%emt 0:00:02]} Rb6 {[%emt 0:00:01]} 106. Rc5 {[%emt 0:00:01]} Rb3 {[%emt 0:00:01]} 107. Ra5 {[%emt 0:00:02]} Rb6 {[%emt 0:00:03]} 108. Rc5 {[%emt 0:00:01]} Kf6 {[%emt 0:00:00]} 109. Ra5 {[%emt 0:00:04]} Re6 {[%emt 0:00:01]} 110. Rb5 {[%emt 0:00:01]} g5 {[%emt 0:00:02]} 111. Kg2 {[%emt 0:00:03]} Rd6 {[%emt 0:00:02]} 112. Ra5 {[%emt 0:00:02]} Rb6 {[%emt 0:00:01]} 113. Rc5 {[%emt 0:00:02]} Ra6 {[%emt 0:00:02]} 114. Rb5 {[%emt 0:00:01]} Rc6 {[%emt 0:00:01]} 115. Ra5 {[%emt 0:00:00]} Rc2+ {[%emt 0:00:01]} 116. Kf1 {[%emt 0:00:01]} Rd2 {[%emt 0:00:02]} 117. Kg1 {[%emt 0:00:02]} Rd4 {[%emt 0:00:02]} 118. Rb5 {[%emt 0:00:02]} Ke6 {[%emt 0:00:01]} 119. Ra5 {[%emt 0:00:01]} Rd5 {[%emt 0:00:00]} 120. Ra8 {[%emt 0:00:02]} Ke5 {[%emt 0:00:05]} 121. Re8+ {[%emt 0:00:01]} Kd4 {[%emt 0:00:00]} 122. Kf2 {[%emt 0:00:02]} Re5 {[%emt 0:00:01]} 123. Rg8 {[%emt 0:00:04]} g4 {[%emt 0:00:03]} 124. Ra8 {[%emt 0:00:01]} Rc5 {[%emt 0:00:03]} 125. Ra4+ {[%emt 0:00:03]} Kd3 {[%emt 0:00:00]} 126. Rf4 {[%emt 0:00:03]} Rd5 {[%emt 0:00:03]} 127. Kg2 {[%emt 0:00:11]} Ke3 {[%emt 0:00:01]} 128. Kg1 {[%emt 0:00:00]} Rc5 {[%emt 0:00:12]} 129. Kg2 {[%emt 0:00:02]} Rb5 {[%emt 0:00:01]} 130. Kg1 {[%emt 0:00:01]} Ke2 {[%emt 0:00:03]} 131. Kg2 {[%emt 0:00:01]} Ke1 {[%emt 0:00:01]} 132. Kg1 {[%emt 0:00:01]} Ra5 {[%emt 0:00:07]} 133. Kg2 {[%emt 0:00:01]} Rc5 {[%emt 0:00:00]} 134. Kg1 {[%emt 0:00:01]} Re5 {[%emt 0:00:03]} 135. Kg2 {[%emt 0:00:01]} Ra5 {[%emt 0:00:07]} 136. Kg1 {[%emt 0:00:01]} Ke2 {[%emt 0:00:03]} 137. Kg2 {[%emt 0:00:01]} Ke3 {[%emt 0:00:01]} 138. Kg1 {[%emt 0:00:00]} Kd3 {[%emt 0:00:01]} 139. Kg2 {[%emt 0:00:01]} Kd2 {[%emt 0:00:01]} 140. Kg1 {[%emt 0:00:01]} Ke1 {[%emt 0:00:00]} 141. Kg2 {[%emt 0:00:01]} Re5 {[%emt 0:00:03]} 142. Kg1 {[%emt 0:00:01]} Re3 {[%emt 0:00:00]} 143. Kg2 {[%emt 0:00:03]} Re2+ {[%emt 0:00:06]} 144. Kg1 {[%emt 0:00:00]} Re5 {[%emt 0:00:00]} 145. Kg2 {[%emt 0:00:01]} Kd2 {[%emt 0:00:01]} 146. Kg1 {[%emt 0:00:02]} Ke3 {[%emt 0:00:01]} 147. Kg2 {[%emt 0:00:02]} Kd3 {[%emt 0:00:03]} 148. Kg1 {[%emt 0:00:01]} Re3 {[%emt 0:00:07]} 149. Kg2 {[%emt 0:00:08]} Re2+ {[%emt 0:00:02]} 150. Kg1 {[%emt 0:00:01]} Re5 {[%emt 0:00:01]} 151. Kg2 {[%emt 0:00:01]} Ke3 {[%emt 0:00:02]} 152. Kg1 {[%emt 0:00:02]} Rc5 {[%emt 0:00:01]} 153. Kg2 {[%emt 0:00:00]} Rb5 {[%emt 0:00:02]} 154. Kg1 {[%emt 0:00:01]} Ra5 {[%emt 0:00:01]} 155. Kg2 {[%emt 0:00:00]} Rc5 {[%emt 0:00:02]} 1/2-1/2

[Event "CCT Chessable Masters Place D-III 2024"]
[Site "Online"]
[Date "2024.02.01"]
[Round "1"]
[White "Matlakov, Maxim"]
[Black "Guseinov, Gadir"]
[Result "1-0"]
[ECO "B38"]
[WhiteElo "2662"]
[BlackElo "2636"]
[Annotator "ChessBase"]
[PlyCount "99"]
[EventDate "2024.01.12"]
[EventType "k.o."]
[EventCountry "NET"]
[SourceTitle "playchess.com"]
[Source "ChessBase"]
[SourceQuality "1"]
[TimeControl "600+2"]

1. d4 {[%emt 0:00:03]} Nf6 {[%emt 0:00:04]} 2. c4 {[%emt 0:00:02]} g6 {[%emt 0:00:01]} 3. Nc3 {[%emt 0:00:01]} Bg7 {[%emt 0:00:04]} 4. e4 {[%emt 0:00:01]} d6 {[%emt 0:00:01]} 5. Nf3 {[%emt 0:00:03]} O-O {[%emt 0:00:01]} 6. Be2 {[%emt 0:00:02]} c5 {[%emt 0:00:11]} 7. O-O {[%emt 0:00:02]} cxd4 {[%emt 0:00:01]} 8. Nxd4 {[%emt 0:00:01]} Nc6 {[%emt 0:00:00]} 9. Be3 {[%emt 0:00:02]} Nxd4 {[%emt 0:00:09]} 10. Bxd4 {[%emt 0:00:01]} Bd7 {[%emt 0:00:00]} 11. Qc2 {[%emt 0:00:04]} a5 {[%emt 0:00:11]} 12. Rad1 {[%emt 0:00:09]} a4 {[%emt 0:00:08]} 13. b4 {[%emt 0:01:24]} axb3 {[%emt 0:00:15]} 14. axb3 {[%emt 0:00:01]} Qa5 {[%emt 0:00:13]} 15. Bxf6 {[%emt 0:00:59]} Bxf6 {[%emt 0:01:14]} 16. Nd5 {[%emt 0:00:01]} Bc6 {[%emt 0:01:32]} 17. b4 {[%emt 0:01:05]} Qa2 {[%emt 0:00:15]} 18. Qxa2 {[%emt 0:00:08]} Rxa2 {[%emt 0:00:03]} 19. Nxf6+ {[%emt 0:00:01]} exf6 {[%emt 0:00:00]} 20. Bf3 {[%emt 0:00:01]} f5 {[%emt 0:00:46]} 21. exf5 {[%emt 0:00:11]} Bxf3 {[%emt 0:00:01]} 22. gxf3 {[%emt 0:00:02]} Rc2 {[%emt 0:00:17]} 23. Rxd6 {[%emt 0:01:08]} Rxc4 {[%emt 0:00:04]} 24. Rb6 {[%emt 0:00:01]} Rf4 {[%emt 0:02:01]} 25. Rxb7 {[%emt 0:01:19]} Rxf5 {[%emt 0:01:23]} 26. b5 {[%emt 0:00:09]} Rd8 {[%emt 0:00:27]} 27. Rb1 {[%emt 0:00:05]} Rdd5 {[%emt 0:00:36]} 28. b6 {[%emt 0:00:13]} Rb5 {[%emt 0:00:02]} 29. Rxb5 {[%emt 0:00:14]} Rxb5 {[%emt 0:00:00]} 30. Kf1 {[%emt 0:00:28]} Rb2 {[%emt 0:00:01]} 31. Ke1 {[%emt 0:00:11]} Kg7 {[%emt 0:00:01]} 32. Kd1 {[%emt 0:01:58]} Rxf2 {[%emt 0:00:10]} 33. Rc7 {[%emt 0:00:09]} Rxf3 {[%emt 0:00:15]} 34. b7 {[%emt 0:00:04]} Rb3 {[%emt 0:00:02]} 35. Kc2 {[%emt 0:00:01]} Rb5 {[%emt 0:00:20]} 36. Kd3 {[%emt 0:00:02]} g5 {[%emt 0:00:05]} 37. Kc4 {[%emt 0:00:01]} Rb1 {[%emt 0:00:01]} 38. Kd5 {[%emt 0:00:02]} h5 {[%emt 0:00:05]} 39. Kc6 {[%emt 0:00:03]} g4 {[%emt 0:00:09]} 40. Rd7 {[%emt 0:00:04]} h4 {[%emt 0:00:08]} 41. Rd5 {[%emt 0:00:01]} Rxb7 {[%emt 0:00:03]} 42. Kxb7 {[%emt 0:00:02]} Kg6 {[%emt 0:00:01]} 43. Kc6 {[%emt 0:00:06]} f5 {[%emt 0:00:01]} 44. Kc5 {[%emt 0:00:12]} Kg5 {[%emt 0:00:04]} 45. Kd4 {[%emt 0:00:09]} Kf4 {[%emt 0:00:00]} 46. Kd3 {[%emt 0:00:08]} g3 {[%emt 0:00:05]} 47. hxg3+ {[%emt 0:00:03]} Kxg3 {[%emt 0:00:01]} 48. Ke2 {[%emt 0:00:03]} h3 {[%emt 0:00:02]} 49. Kf1 {[%emt 0:00:03]} f4 {[%emt 0:00:01]} 50. Kg1 {[%emt 0:00:02]} 1-0

[Event "CCT Chessable Masters Place D-III 2024"]
[Site "Online"]
[Date "2024.02.01"]
[Round "1"]
[White "Bluebaum, Matthias"]
[Black "BilodeauA"]
[Result "1/2-1/2"]
[ECO "D05"]
[WhiteElo "2655"]
[BlackElo "2603"]
[Annotator "ChessBase"]
[PlyCount "85"]
[EventDate "2024.01.12"]
[EventType "k.o."]
[EventCountry "NET"]
[SourceTitle "playchess.com"]
[Source "ChessBase"]
[SourceQuality "1"]
[TimeControl "600+2"]

1. d4 {[%emt 0:00:03]} Nf6 {[%emt 0:00:04]} 2. Nf3 {[%emt 0:00:05]} e6 {[%emt 0:00:06]} 3. e3 {[%emt 0:00:05]} d5 {[%emt 0:00:17]} 4. Bd3 {[%emt 0:00:07]} Be7 {[%emt 0:00:24]} 5. Nbd2 {[%emt 0:00:18]} O-O {[%emt 0:00:09]} 6. e4 {[%emt 0:00:15]} dxe4 {[%emt 0:00:26]} 7. Nxe4 {[%emt 0:00:00]} Nbd7 {[%emt 0:00:08]} 8. c3 {[%emt 0:00:22]} b6 {[%emt 0:00:05]} 9. O-O {[%emt 0:00:42]} Bb7 {[%emt 0:00:02]} 10. Qe2 {[%emt 0:00:01]} c5 {[%emt 0:00:18]} 11. Nxf6+ {[%emt 0:00:31]} Bxf6 {[%emt 0:00:18]} 12. Rd1 {[%emt 0:00:27]} cxd4 {[%emt 0:00:10]} 13. Nxd4 {[%emt 0:00:39]} Bxd4 {[%emt 0:00:15]} 14. Bb5 {[%emt 0:00:37]} a6 {[%emt 0:00:48]} 15. Bxd7 {[%emt 0:00:09]} Qxd7 {[%emt 0:00:00]} 16. Rxd4 {[%emt 0:00:04]} Qc6 {[%emt 0:00:01]} 17. f3 {[%emt 0:00:05]} Rad8 {[%emt 0:01:23]} 18. Be3 {[%emt 0:00:08]} e5 {[%emt 0:00:21]} 19. Rxd8 {[%emt 0:00:05]} Rxd8 {[%emt 0:00:00]} 20. Rd1 {[%emt 0:00:04]} Rxd1+ {[%emt 0:00:11]} 21. Qxd1 {[%emt 0:00:00]} Qd5 {[%emt 0:00:07]} 22. Qxd5 {[%emt 0:00:05]} Bxd5 {[%emt 0:00:00]} 23. Bxb6 {[%emt 0:00:02]} Bxa2 {[%emt 0:00:03]} 24. Kf2 {[%emt 0:00:05]} f6 {[%emt 0:00:03]} 25. Ke3 {[%emt 0:00:04]} Bc4 {[%emt 0:00:28]} 26. f4 {[%emt 0:00:16]} exf4+ {[%emt 0:00:09]} 27. Kxf4 {[%emt 0:00:00]} Kf7 {[%emt 0:00:01]} 28. Ke4 {[%emt 0:00:04]} Ke6 {[%emt 0:00:02]} 29. g3 {[%emt 0:00:04]} Kd6 {[%emt 0:00:47]} 30. Kd4 {[%emt 0:00:04]} Bb3 {[%emt 0:00:22]} 31. Bc5+ {[%emt 0:00:03]} Kc6 {[%emt 0:00:05]} 32. Bf8 {[%emt 0:00:05]} g6 {[%emt 0:00:01]} 33. Be7 {[%emt 0:00:05]} Bc2 {[%emt 0:00:06]} 34. Bxf6 {[%emt 0:00:03]} h5 {[%emt 0:00:01]} 35. c4 {[%emt 0:00:33]} Bb1 {[%emt 0:00:03]} 36. Kc3 {[%emt 0:00:01]} Bf5 {[%emt 0:00:01]} 37. Kb4 {[%emt 0:00:01]} Bd3 {[%emt 0:00:02]} 38. b3 {[%emt 0:00:01]} Bc2 {[%emt 0:00:01]} 39. Bg5 {[%emt 0:00:02]} Bd1 {[%emt 0:00:02]} 40. Kc3 {[%emt 0:00:04]} Bg4 {[%emt 0:00:03]} 41. Kd4 {[%emt 0:00:02]} Bd1 {[%emt 0:00:02]} 42. b4 {[%emt 0:00:01]} Bc2 {[%emt 0:00:01]} 43. Bd2 {[%emt 0:00:11]} 1/2-1/2

[Event "CCT Chessable Masters Place D-III 2024"]
[Site "Online"]
[Date "2024.02.01"]
[Round "1"]
[White "MashaPutina"]
[Black "Drags95"]
[Result "1-0"]
[ECO "E15"]
[WhiteElo "2640"]
[BlackElo "2469"]
[Annotator "NA"]
[PlyCount "131"]
[EventDate "2024.01.12"]
[EventType "k.o."]
[EventCountry "NET"]
[SourceTitle "playchess.com"]
[Source "ChessBase"]
[SourceQuality "1"]
[TimeControl "600+2"]

1. d4 {[%emt 0:00:03]} Nf6 {[%emt 0:00:05]} 2. c4 {[%emt 0:00:01]} e6 {[%emt 0:00:01]} 3. Nf3 {[%emt 0:00:02]} b6 {[%emt 0:00:01]} 4. g3 {[%emt 0:00:02]} Ba6 {[%emt 0:00:04]} 5. b3 {[%emt 0:00:01]} Bb4+ {[%emt 0:00:06]} 6. Bd2 {[%emt 0:00:02]} Be7 {[%emt 0:00:01]} 7. Bg2 {[%emt 0:00:01]} O-O {[%emt 0:00:02]} 8. O-O {[%emt 0:00:02]} d5 {[%emt 0:00:01]} 9. cxd5 {[%emt 0:00:10]} exd5 {[%emt 0:00:00]} 10. Nc3 {[%emt 0:00:02]} Re8 {[%emt 0:00:03]} 11. Ne5 {[%emt 0:00:22]} Bb7 {[%emt 0:00:04]} 12. Rc1 {[%emt 0:00:05]} h6 {[%emt 0:00:33]} 13. Qc2 {[%emt 0:00:19]} Nbd7 {[%emt 0:00:45]} 14. Bf4 {[%emt 0:00:05]} Nf8 {[%emt 0:00:52]} 15. Rfd1 {[%emt 0:00:09]} Ne6 {[%emt 0:00:07]} 16. Be3 {[%emt 0:00:06]} Ba3 {[%emt 0:00:29]} 17. Rb1 {[%emt 0:00:02]} Bf8 {[%emt 0:00:01]} 18. b4 {[%emt 0:00:03]} c6 {[%emt 0:00:22]} 19. a4 {[%emt 0:00:09]} Rc8 {[%emt 0:00:05]} 20. Qb3 {[%emt 0:00:08]} Bd6 {[%emt 0:00:15]} 21. b5 {[%emt 0:00:33]} Nxd4 {[%emt 0:01:34]} 22. Nxf7 {[%emt 0:01:09]} Nxb3 {[%emt 0:00:28]} 23. Nxd8 {[%emt 0:00:02]} Rexd8 {[%emt 0:01:00]} 24. Rxb3 {[%emt 0:00:02]} Bc5 {[%emt 0:00:12]} 25. Bxc5 {[%emt 0:01:30]} bxc5 {[%emt 0:00:01]} 26. b6 {[%emt 0:00:01]} c4 {[%emt 0:00:22]} 27. Rbb1 {[%emt 0:00:09]} a5 {[%emt 0:00:39]} 28. e3 {[%emt 0:00:41]} Rb8 {[%emt 0:00:06]} 29. Ne2 {[%emt 0:00:36]} Nd7 {[%emt 0:00:06]} 30. e4 {[%emt 0:00:04]} Nc5 {[%emt 0:00:15]} 31. exd5 {[%emt 0:00:11]} cxd5 {[%emt 0:00:00]} 32. Rb5 {[%emt 0:00:14]} Nxa4 {[%emt 0:00:07]} 33. Ra1 {[%emt 0:00:04]} Bc6 {[%emt 0:00:06]} 34. Rxa5 {[%emt 0:00:01]} Nxb6 {[%emt 0:00:06]} 35. Nd4 {[%emt 0:00:03]} Be8 {[%emt 0:00:30]} 36. Rb1 {[%emt 0:00:02]} c3 {[%emt 0:00:16]} 37. Ra6 {[%emt 0:00:26]} Nc4 {[%emt 0:00:34]} 38. Rxb8 {[%emt 0:00:04]} Rxb8 {[%emt 0:00:01]} 39. Bxd5+ {[%emt 0:00:04]} Bf7 {[%emt 0:00:00]} 40. Bxf7+ {[%emt 0:00:06]} Kxf7 {[%emt 0:00:00]} 41. Rc6 {[%emt 0:00:01]} Rb4 {[%emt 0:00:10]} 42. Kg2 {[%emt 0:00:05]} Ne5 {[%emt 0:00:10]} 43. Rc7+ {[%emt 0:00:02]} Kf6 {[%emt 0:00:01]} 44. Ne2 {[%emt 0:00:04]} Rc4 {[%emt 0:00:12]} 45. Rxc4 {[%emt 0:00:02]} Nxc4 {[%emt 0:00:00]} 46. Nxc3 {[%emt 0:00:01]} g5 {[%emt 0:00:09]} 47. Kf3 {[%emt 0:00:02]} Kf5 {[%emt 0:00:03]} 48. Nd5 {[%emt 0:00:11]} Ne5+ {[%emt 0:00:02]} 49. Kg2 {[%emt 0:00:01]} g4 {[%emt 0:00:04]} 50. Ne3+ {[%emt 0:00:09]} Ke4 {[%emt 0:00:03]} 51. Nxg4 {[%emt 0:00:04]} Nxg4 {[%emt 0:00:02]} 52. f3+ {[%emt 0:00:04]} Kf5 {[%emt 0:00:02]} 53. fxg4+ {[%emt 0:00:01]} Kxg4 {[%emt 0:00:00]} 54. h3+ {[%emt 0:00:03]} Kg5 {[%emt 0:00:06]} 55. Kf3 {[%emt 0:00:12]} Kf5 {[%emt 0:00:02]} 56. g4+ {[%emt 0:00:03]} Kg5 {[%emt 0:00:17]} 57. Kg3 {[%emt 0:00:01]} Kg6 {[%emt 0:00:01]} 58. Kf4 {[%emt 0:00:06]} Kf6 {[%emt 0:00:01]} 59. h4 {[%emt 0:00:03]} Ke6 {[%emt 0:00:07]} 60. Ke4 {[%emt 0:00:02]} Kf6 {[%emt 0:00:04]} 61. Kd5 {[%emt 0:00:01]} Kf7 {[%emt 0:00:03]} 62. Ke5 {[%emt 0:00:01]} Ke7 {[%emt 0:00:01]} 63. Kf5 {[%emt 0:00:01]} Kf7 {[%emt 0:00:01]} 64. h5 {[%emt 0:00:00]} Kg7 {[%emt 0:00:04]} 65. Ke6 {[%emt 0:00:01]} Kg8 {[%emt 0:00:04]} 66. Kf6 {[%emt 0:00:01]} 1-0